[Event "Kezmarok Chess Open 2022"]
[Site "Kezmarok"]
[Date "2022.09.26"]
[Round "4.6"]
[White "Janik, Marek Tobias"]
[Black "Wisniewski, Michal"]
[Result "0-1"]
[ECO "B01"]
[WhiteElo "1823"]
[BlackElo "2152"]
[Annotator "TA"]
[PlyCount "52"]
[EventDate "2022.09.24"]
[EventType "swiss"]
[EventCountry "SVK"]
[SourceTitle "playchess.com"]
[Source "ChessBase"]
[SourceQuality "1"]
[TimeControl "40/5400+30:1800+30"]

{[%evp 15,52,-87,-108,-202,-201,-206,-202,-577,-585,-555,-292,-583,-585,-575,-561,-559,-550,-552,-559,-552,-557,-546,-550,-591,-584,-568,-555,-635,-629,-654,-658,-659,-658,-667,-672,-658,-664,-656,-625]} 1. e4 d5 2. exd5 Qxd5 3. Nc3 Qa5 4. d4 Nf6 5. Nf3 Nc6 6. Be2 Bg4 7. Be3 O-O-O 8. O-O e5 {[#] aiming for ...Bxf3. Black is much more active. The white rooks are badly placed.} 9. Nb5 {B01: Scandinavian Defence.} (9. d5 $17 {was necessary.}) 9... Bxf3 $19 10. gxf3 exd4 11. Nxd4 (11. Bf4 {is more resistant.} Rd7 12. a4) 11... Nxd4 12. Bxd4 Qg5+ 13. Kh1 Qh4 {[#] Threatens to win with ...Bd6. Black is clearly winning.} 14. f4 $146 ({Predecessor:} 14. Bxf6 gxf6 15. Bd3 Bd6 {0-1 (15) Kunovsky,D (2026)-Holeva,M (2034) Slovakia 2007}) 14... Qxf4 {...Bd6 is the strong threat.} 15. Be3 Qe4+ ({Not} 15... Rxd1 16. Bxf4 Rxa1 17. Rxa1 $15) 16. Bf3 Rxd1 17. Bxe4 Rxf1+ 18. Rxf1 Nxe4 19. f3 Nf6 20. Bd4 Be7 21. Rg1 Rd8 22. Bc3 g6 23. Re1 Nd5 24. Be5 Bf6 25. Bxf6 Nxf6 26. Re7 Rd7 {Black took control after the opening.  Weighted Error Value: White=0.63/Black=0.02 (flawless)} 0-1

[Event "Kezmarok Chess Open 2022"]
[Site "Kezmarok"]
[Date "2022.09.26"]
[Round "4.7"]
[White "Walter, Ema"]
[Black "Ropovik, Samuel"]
[Result "1-0"]
[ECO "B52"]
[WhiteElo "2062"]
[BlackElo "1497"]
[Annotator "ChessBase"]
[PlyCount "57"]
[EventDate "2022.09.24"]
[EventType "swiss"]
[EventCountry "SVK"]
[SourceTitle "playchess.com"]
[Source "ChessBase"]
[SourceQuality "1"]
[TimeControl "40/5400+30:1800+30"]

1. e4 {[%emt 0:00:05]} c5 {[%emt 0:00:22]} 2. Nf3 {[%emt 0:00:06]} d6 {[%emt 0:00:05]} 3. Bb5+ {[%emt 0:00:12]} Bd7 {[%emt 0:00:01]} 4. Bxd7+ {[%emt 0:00:26]} Qxd7 {[%emt 0:00:08]} 5. c4 {[%emt 0:00:07]} e5 {[%emt 0:01:51]} 6. Nc3 {[%emt 0:00:51]} Nc6 {[%emt 0:00:19]} 7. a3 {[%emt 0:00:26]} Be7 {[%emt 0:03:22]} 8. d3 {[%emt 0:03:15]} Bd8 {[%emt 0:03:09]} 9. Nd5 {[%emt 0:05:13]} Ba5+ {[%emt 0:07:33]} 10. Bd2 {[%emt 0:00:51]} Bxd2+ {[%emt 0:02:20]} 11. Qxd2 {[%emt 0:00:44]} Nge7 {[%emt 0:04:03]} 12. b4 {[%emt 0:07:16]} Nxd5 {[%emt 0:17:03]} 13. exd5 {[%emt 0:03:24]} Nd4 {[%emt 0:01:14]} 14. Nxd4 {[%emt 0:00:50]} cxd4 {[%emt 0:01:55]} 15. f4 {[%emt 0:03:08]} O-O {[%emt 0:05:55]} 16. fxe5 {[%emt 0:02:55]} dxe5 {[%emt 0:03:24]} 17. O-O {[%emt 0:01:09]} Rae8 {[%emt 0:02:56]} 18. Qa2 {[%emt 0:05:17]} f5 {[%emt 0:02:18]} 19. c5 {[%emt 0:01:23]} Kh8 {[%emt 0:04:17]} 20. a4 {[%emt 0:03:38]} g6 {[%emt 0:02:12]} 21. Rae1 {[%emt 0:03:00]} b6 {[%emt 0:02:30]} 22. Qc4 {[%emt 0:12:52]} Qc7 {[%emt 0:02:37]} 23. d6 {[%emt 0:19:05]} Qc6 {[%emt 0:07:18]} 24. Qb5 {[%emt 0:00:11]} Qxb5 {[%emt 0:07:14]} 25. axb5 {[%emt 0:00:07]} Re6 {[%emt 0:01:00]} 26. d7 {[%emt 0:01:58]} Kg7 {[%emt 0:03:25]} 27. c6 {[%emt 0:00:11]} Rd6 {[%emt 0:01:18]} 28. Rxe5 {[%emt 0:00:24]} Kf7 {[%emt 0:00:22]} 29. Rfe1 {[%emt 0:00:32]} 1-0

[Event "Kezmarok Chess Open 2022"]
[Site "Kezmarok"]
[Date "2022.09.26"]
[Round "4.8"]
[White "Kovac, Lubomir"]
[Black "Vestur, Rastislav"]
[Result "1-0"]
[ECO "D37"]
[WhiteElo "2091"]
[BlackElo "1789"]
[Annotator "TA"]
[PlyCount "103"]
[EventDate "2022.09.24"]
[EventType "swiss"]
[EventCountry "SVK"]
[SourceTitle "playchess.com"]
[Source "ChessBase"]
[SourceQuality "1"]
[TimeControl "40/5400+30:1800+30"]

{[%evp 20,103,-9,-9,-9,-15,0,-19,-3,-76,-18,-18,23,22,55,33,41,36,47,22,97,57,72,10,18,5,47,0,2,0,0,0,30,30,62,66,73,54,77,39,50,19,61,0,0,0,0,0,0,0,0,0,0,0,0,0,0,0,0,0,7254,7251,7187,7027,6256,6203,5261,2254,5691,6091,11855,11855,29968,29972,29972,29972,29982,29983,29983,29984,29984,29985,29985,29985,29985,29986]} 1. d4 Nf6 2. Nf3 e6 3. c4 d5 4. Nc3 dxc4 5. e3 a6 6. Bxc4 b5 7. Bd3 Bb7 8. O-O c5 9. Qe2 Nbd7 10. Rd1 Qc7 {The old main line.} 11. e4 cxd4 {D48: Semi-Slav: Meran System: 7...b5 8 Bd3 a6.} 12. Nxd4 Bd6 13. h3 {[%cal Od3b5]} (13. g3 $5 {[%cal Rd3b5]}) 13... O-O {The position is equal.} 14. Bg5 (14. Be3 $11 {keeps the balance.}) 14... Be5 {[#]} ({Better is} 14... b4 $17 15. Nb1 Bh2+ 16. Kh1 Be5) 15. Nf3 $146 ({Predecessor:} 15. Bc2 Rac8 16. Rac1 h6 17. Be3 Nb6 18. Bb3 Bxd4 19. Bxd4 Nbd7 20. Rc2 {0-1 (42) Nene,T (1963)-Selkirk,R (1612) Port Elizabeth 2013}) 15... Bxc3 16. Rac1 {[%mdl 64] [#] Pin} b4 {[%cal Oh7h6]} 17. bxc3 bxc3 18. Bd2 {A strong pair of Bishops.} Rfc8 19. Rxc3 Qd6 (19... Qd8 $11) 20. Rdc1 e5 21. Bg5 ({White should try} 21. Rxc8+ $16 Rxc8 22. Rxc8+ Bxc8 23. Be3) 21... Rxc3 22. Rxc3 h6 23. Bxf6 Nxf6 24. Qc2 (24. Rb3 {is interesting.} Bc6 25. Rb6 Qc5 26. Qe3) 24... Rd8 25. Nd2 {[%cal Bf3d2,Bd2b3,Bb3c5][%mdl 32]} Kh8 26. Nb3 Qb4 {[%cal Rf6e4]} 27. Nc5 {Strongly threatening a3.} Bc8 28. Kh2 a5 29. a3 Qb6 30. Rb3 Qd6 31. a4 (31. Bb5 $14) 31... Nd7 32. Nxd7 Bxd7 33. Bb5 {And now Rd3 would win.} Be6 $1 34. Rd3 $36 {[%mdl 2048] Black is under pressure.} Qe7 35. Rxd8+ Qxd8 {[%mdl 4096] Endgame KQB-KQB} 36. Qc3 f6 37. Qc6 Bb3 38. Bc4 Bxc4 39. Qxc4 Qd4 $2 {[%mdl 8192] [#]} (39... Qd2 $11) 40. Qxd4 $1 $18 exd4 {KP-KP} 41. Kg3 Kg8 42. Kf3 Kf7 43. Ke2 Ke6 44. f4 Kd6 45. Kd3 {White wants to mate with g3.} Kc5 46. g4 {White mates.} g6 47. h4 f5 48. exf5 gxf5 49. g5 hxg5 50. fxg5 Kd5 51. g6 Ke6 52. Kxd4 {Weighted Error Value: White=0.16 (very precise) /Black=0.27 (precise)} 1-0

[Event "Kezmarok Chess Open 2022"]
[Site "Kezmarok"]
[Date "2022.09.26"]
[Round "4.9"]
[White "Belus, Benjamin"]
[Black "Hagara, Eduard"]
[Result "1-0"]
[ECO "A20"]
[WhiteElo "1932"]
[BlackElo "1734"]
[Annotator "TA"]
[PlyCount "91"]
[EventDate "2022.09.24"]
[EventType "swiss"]
[EventCountry "SVK"]
[SourceTitle "playchess.com"]
[Source "ChessBase"]
[SourceQuality "1"]
[TimeControl "40/5400+30:1800+30"]

{[%evp 9,91,37,55,45,50,62,56,60,79,80,81,73,80,72,103,106,110,85,102,93,108,107,118,122,141,119,140,105,118,92,110,111,116,114,98,64,85,29,61,29,30,10,95,19,17,19,43,38,64,25,55,27,108,97,210,234,463,454,419,346,333,297,290,294,245,253,354,305,500,390,940,932,29991,1729,1699,1593,1673,569,1551,1627,29996,29997,29997,29996]} 1. c4 e5 2. g3 Nf6 3. Bg2 c6 4. d4 Qa5+ 5. Bd2 Bb4 6. dxe5 {A20: English Opening: 1...e5.} Bxd2+ 7. Qxd2 Qxe5 8. Nf3 {White is slightly better.} Qe7 9. Nc3 O-O {[%cal Od7d5]} 10. O-O Na6 11. Nd4 {[#]} Nc7 $146 ({Predecessor:} 11... d6 12. e4 Rd8 13. Rfe1 Ne8 14. h3 Nac7 15. Rad1 g6 16. e5 Be6 17. exd6 Nxd6 {1-0 (23) Foisor,O (2491)-Schweizer,R (2042) Martigny 1999}) 12. Nf5 Qd8 13. Ne3 {Against d5. White has more active pieces. The black rooks are badly placed.} (13. Qg5 {feels hotter.} Ne6 14. Qe3 g6 15. Nd6) 13... d6 14. Rfd1 Nce8 15. b4 {[%cal Bb2b4,Bb4b5][%mdl 32]} Qc7 16. b5 Rb8 17. a4 Be6 18. a5 a6 19. Rdb1 Nd7 20. bxa6 bxa6 21. Rxb8 Nxb8 22. Na4 Nd7 23. Rb1 (23. Rd1 $16) 23... Nef6 $11 24. Nb6 Rb8 25. Qd4 Ne8 {[#]} (25... h6 $11 {remains equal.}) 26. Rb3 ({Better is} 26. Rb2 $1 $16) 26... Nc5 27. Rb4 Nb7 {Threatens to win with ...c5.} 28. Qa1 Nf6 29. Qa4 Nd8 30. Nc2 c5 (30... Bf5 $11 {keeps the balance.}) 31. Rb3 $16 {Black is now going downhill.} Nd7 (31... Bd7 $16 {is a better defense.} 32. Qa2 (32. Nxd7 Qxd7 33. Qa2 Qc7 $14) 32... Nc6) 32. Ne3 $18 {[%cal Bc2e3,Be3d5,Bd5f6,Bf6e8,Be8d6][%mdl 32]} g6 $2 (32... Kh8 {might work better.} 33. h4 Qa7) 33. Ned5 Qa7 34. Re3 Ne5 35. Nf6+ ({Not} 35. Qe8+ Kg7 36. Ne7 f6 $16) 35... Kg7 36. Ne8+ Kf8 {[#] ...Qe7 is the strong threat.} 37. Nxd6 Ng4 38. Rd3 Ne5 $2 (38... Qe7 {was called for.} 39. Qa3 f5 40. Qxc5 Nf7) 39. Rd1 Nd7 $2 (39... Qe7 40. f4 Ng4) 40. Qa1 Nxb6 41. axb6 (41. Qh8+ $142 Ke7 42. Qe8+ Kf6 43. Qf8 Qd7 44. Ne4+ Kf5 45. Qxc5+ Qd5 46. cxd5 Nc6 47. Bh3+ Ke5 48. dxe6+ Kxe4 49. Bg2#) 41... Qxb6 42. Qh8+ Ke7 43. Qe8+ Kf6 44. Qf8 {White threatens Ne4+ and mate.} Nc6 45. Ne4+ Kf5 46. Qg7 {Weighted Error Value: White=0.24 (precise) /Black=0.65} 1-0

[Event "Kezmarok Chess Open 2022"]
[Site "Kezmarok"]
[Date "2022.09.26"]
[Round "4.10"]
[White "Sekova, Olivia"]
[Black "Mirowska, Oliwia"]
[Result "1/2-1/2"]
[ECO "B01"]
[WhiteElo "1797"]
[BlackElo "1856"]
[Annotator "NA RC"]
[PlyCount "142"]
[EventDate "2022.09.24"]
[EventType "swiss"]
[EventCountry "SVK"]
[SourceTitle "playchess.com"]
[Source "ChessBase"]
[SourceQuality "1"]
[TimeControl "40/5400+30:1800+30"]

1. e4 {[%emt 0:00:03]} d5 {[%emt 0:03:37]} 2. exd5 {[%emt 0:00:10]} Qxd5 {[%emt 0:00:06]} 3. Nc3 {[%emt 0:00:24]} Qa5 {[%emt 0:00:10]} 4. d4 {[%emt 0:00:24]} Nf6 {[%emt 0:00:18]} 5. Nf3 {[%emt 0:00:44]} Nc6 {[%emt 0:00:50]} 6. Bb5 {[%emt 0:00:53]} Ne4 {[%emt 0:02:23]} 7. Bd2 {[%emt 0:12:42]} Nxc3 {[%emt 0:00:09]} 8. Bxc6+ {[%emt 0:00:08]} bxc6 {[%emt 0:00:02]} 9. Bxc3 {[%emt 0:00:36]} Qd5 {[%emt 0:00:07]} 10. O-O {[%emt 0:00:52]} Bg4 {[%emt 0:00:26]} 11. Re1 {[%emt 0:00:31]} Bxf3 {[%emt 0:00:10]} 12. Qxf3 {[%emt 0:00:06]} Qxf3 {[%emt 0:00:10]} 13. gxf3 {[%emt 0:00:06]} e6 {[%emt 0:00:20]} 14. Rad1 {[%emt 0:05:19]} Bd6 {[%emt 0:01:02]} 15. d5 {[%emt 0:05:04]} cxd5 {[%emt 0:01:19]} 16. Rxd5 {[%emt 0:00:08]} O-O {[%emt 0:05:59]} 17. Ra5 {[%emt 0:01:59]} h6 {[%emt 0:05:25]} 18. Re4 {[%emt 0:00:35]} Kh7 {[%emt 0:11:19]} 19. Rea4 {[%emt 0:02:46]} Rfd8 {[%emt 0:05:10]} 20. Rxa7 {[%emt 0:04:11]} Rxa7 {[%emt 0:00:54]} 21. Rxa7 {[%emt 0:00:10]} Bf4 {[%emt 0:00:33]} 22. a4 {[%emt 0:10:01]} Rd5 {[%emt 0:04:28]} 23. a5 {[%emt 0:01:20]} Rg5+ {[%emt 0:01:21]} 24. Kf1 {[%emt 0:09:04]} Bxh2 {[%emt 0:00:13]} 25. a6 {[%emt 0:06:19]} Rg1+ {[%emt 0:02:22]} 26. Ke2 {[%emt 0:00:04]} Ra1 {[%emt 0:01:00]} 27. Ra8 {[%emt 0:00:27]} h5 {[%emt 0:01:49]} 28. a7 {[%emt 0:01:52]} Bd6 {[%emt 0:03:01]} 29. b4 {[%emt 0:02:28]} Ra2 {[%emt 0:11:14]} 30. Bd4 {[%emt 0:02:21]} Bxb4 {[%emt 0:00:49]} 31. Rb8 {[%emt 0:00:57]} c5 {[%emt 0:00:46]} 32. Bxc5 {[%emt 0:01:54]} Bxc5 {[%emt 0:05:48]} 33. a8=Q {[%emt 0:00:10]} Rxa8 {[%emt 0:01:00]} 34. Rxa8 {[%emt 0:00:06]} Kg6 {[%emt 0:07:45]} 35. f4 {[%emt 0:04:15]} Bd6 {[%emt 0:01:51]} 36. Ke3 {[%emt 0:01:54]} Kf6 {[%emt 0:02:36]} 37. Ra5 {[%emt 0:06:50]} g6 {[%emt 0:01:21]} 38. Ke4 {[%emt 0:01:12]} Bc7 {[%emt 0:00:49]} 39. Rb5 {[%emt 0:01:29]} Ke7 {[%emt 0:01:33]} 40. c4 {[%emt 0:05:03]} Kd7 {[%emt 0:01:57]} 41. Rb1 {[%emt 0:31:06]} Kc6 {[%emt 0:32:04]} 42. Rd1 {[%emt 0:00:31]} Bd6 {[%emt 0:01:04]} 43. Ra1 {[%emt 0:01:43]} Bc7 {[%emt 0:01:16]} 44. Ra8 {[%emt 0:01:07]} Kd7 {[%emt 0:00:22]} 45. c5 {[%emt 0:01:13]} Kc6 {[%emt 0:05:09] [#]} 46. Ra7 $2 {[%emt 0:02:22]} ({White has to play} 46. Rf8 $1 $18 {[%cal Rf8f7]}) 46... Kd7 {[%emt 0:00:46]} 47. Ra6 {[%emt 0:00:55]} Ke7 {[%emt 0:00:42]} 48. Ra8 {[%emt 0:00:57]} Kd7 {[%emt 0:00:39]} 49. Ra6 {[%emt 0:03:10]} Ke7 {[%emt 0:00:19]} 50. c6 {[%emt 0:00:37]} Kd6 {[%emt 0:00:53]} 51. Kd4 {[%emt 0:00:42]} h4 {[%emt 0:07:20]} 52. Ke4 {[%emt 0:02:34]} Kc5 {[%emt 0:01:33]} 53. Kf3 {[%emt 0:00:40]} h3 {[%emt 0:00:00]} 54. Kg3 {[%emt 0:00:00]} h2 {[%emt 0:00:00]} 55. Kxh2 {[%emt 0:00:00]} Bxf4+ {[%emt 0:00:00]} 56. Kg2 {[%emt 0:00:00]} Kb5 {[%emt 0:00:00]} 57. Ra7 {[%emt 0:00:00]} Kxc6 {[%emt 0:00:00]} 58. Rxf7 {[%emt 0:00:00]} g5 {[%emt 0:00:00]} 59. Kf3 {[%emt 0:00:00]} Kd5 {[%emt 0:00:00]} 60. Rd7+ {[%emt 0:00:00]} Ke5 {[%emt 0:00:00]} 61. Ra7 {[%emt 0:00:00]} Kf5 {[%emt 0:00:00]} 62. Rf7+ {[%emt 0:00:00]} Ke5 {[%emt 0:00:00]} 63. Rf8 {[%emt 0:00:00]} Kd5 {[%emt 0:00:00]} 64. Kg4 {[%emt 0:00:00]} Ke4 {[%emt 0:00:00]} 65. f3+ {[%emt 0:00:00]} Ke3 {[%emt 0:00:00]} 66. Rd8 {[%emt 0:00:00]} e5 {[%emt 0:00:00]} 67. Rd7 {[%emt 0:00:00]} Ke2 $14 {[%emt 0:00:00]} 68. Rb7 {[%emt 0:00:00]} Ke3 {[%emt 0:00:00]} 69. Rb2 {[%emt 0:00:00]} Kd3 {[%emt 0:00:00]} 70. Rb4 {[%emt 0:00:00]} Ke3 {[%emt 0:00:00]} 71. Re4+ {[%emt 0:00:00]} Kf2 {[%emt 0:00:00]} 1/2-1/2

[Event "Kezmarok Chess Open 2022"]
[Site "Kezmarok"]
[Date "2022.09.26"]
[Round "4.11"]
[White "Velychko, Semen"]
[Black "Juracak, David"]
[Result "1-0"]
[ECO "D00"]
[WhiteElo "1604"]
[BlackElo "1708"]
[Annotator "NA RC"]
[PlyCount "79"]
[EventDate "2022.09.24"]
[EventType "swiss"]
[EventCountry "SVK"]
[SourceTitle "playchess.com"]
[Source "ChessBase"]
[SourceQuality "1"]
[TimeControl "40/5400+30:1800+30"]

1. d4 {[%emt 0:00:11]} d5 {[%emt 0:00:06]} 2. Nc3 {[%emt 0:00:14]} e6 {[%emt 0:00:49]} 3. Bf4 {[%emt 0:00:17]} Nf6 {[%emt 0:04:02]} 4. e3 {[%emt 0:00:59]} Bd6 {[%emt 0:03:55]} 5. Nge2 {[%emt 0:01:31]} O-O {[%emt 0:04:51]} 6. g3 {[%emt 0:03:23]} b6 {[%emt 0:02:17]} 7. Bg2 {[%emt 0:01:41]} Bb7 {[%emt 0:00:21]} 8. O-O {[%emt 0:00:29]} c5 {[%emt 0:00:37]} 9. Be5 {[%emt 0:07:50]} Bxe5 {[%emt 0:01:13]} 10. dxe5 {[%emt 0:00:24]} Ng4 {[%emt 0:00:06]} 11. Qc1 {[%emt 0:09:54]} Nxe5 {[%emt 0:00:40]} 12. f4 {[%emt 0:01:27]} Ng4 {[%emt 0:03:16]} 13. f5 {[%emt 0:05:09]} e5 {[%emt 0:17:24]} 14. Rd1 {[%emt 0:02:27]} Qg5 {[%emt 0:05:39]} 15. Nxd5 {[%emt 0:13:24]} Nc6 {[%emt 0:10:11]} 16. e4 {[%emt 0:01:40]} Qxc1 {[%emt 0:02:37]} 17. Raxc1 {[%emt 0:00:11]} Nd4 {[%emt 0:00:21]} 18. Nxd4 {[%emt 0:01:02]} cxd4 {[%emt 0:00:19]} 19. h3 {[%emt 0:00:59]} Bxd5 {[%emt 0:00:38]} 20. hxg4 {[%emt 0:01:00]} Bxa2 {[%emt 0:00:36]} 21. b3 {[%emt 0:01:22]} Rfc8 {[%emt 0:00:47]} 22. Bf1 {[%emt 0:01:43]} Rc5 {[%emt 0:01:51]} 23. Bc4 {[%emt 0:02:16]} b5 {[%emt 0:05:22]} 24. Bd3 {[%emt 0:02:32]} b4 {[%emt 0:00:13]} 25. Ra1 {[%emt 0:00:15]} Ra5 {[%emt 0:00:07]} 26. Rdb1 {[%emt 0:06:11]} Bxb1 {[%emt 0:16:14]} 27. Rxa5 {[%emt 0:00:01]} Rc8 {[%emt 0:00:10]} 28. Ra1 {[%emt 0:02:27]} Rc5 {[%emt 0:00:09]} 29. Rxb1 {[%emt 0:00:36]} h6 {[%emt 0:00:04]} 30. g5 {[%emt 0:04:26]} hxg5 {[%emt 0:00:22]} 31. Kf2 {[%emt 0:00:56]} g6 {[%emt 0:06:52]} 32. fxg6 {[%emt 0:00:52]} fxg6 {[%emt 0:00:09]} 33. Kf3 {[%emt 0:00:15]} Kg7 {[%emt 0:00:53]} 34. Kg4 {[%emt 0:00:10]} a5 {[%emt 0:01:11]} 35. Kxg5 {[%emt 0:01:25]} Rc7 {[%emt 0:01:39]} 36. Rf1 {[%emt 0:00:53]} Rc6 {[%emt 0:00:17]} 37. Bc4 {[%emt 0:03:25]} a4 {[%emt 0:01:03]} 38. Rf7+ {[%emt 0:01:09]} Kh8 {[%emt 0:00:08]} 39. Bd5 {[%emt 0:01:48]} Rc3 {[%emt 0:01:19]} 40. Kh6 {[%emt 0:00:21]} 1-0

[Event "Kezmarok Chess Open 2022"]
[Site "Kezmarok"]
[Date "2022.09.26"]
[Round "4.12"]
[White "Smetana, Peter"]
[Black "Rakovsky, Jakub"]
[Result "1/2-1/2"]
[ECO "C47"]
[WhiteElo "1715"]
[BlackElo "2012"]
[Annotator "TA"]
[PlyCount "64"]
[EventDate "2022.09.24"]
[EventType "swiss"]
[EventCountry "SVK"]
[SourceTitle "playchess.com"]
[Source "ChessBase"]
[SourceQuality "1"]
[TimeControl "40/5400+30:1800+30"]

{[%evp 17,64,0,0,0,10,0,0,0,8,0,4,3,8,16,24,0,0,-31,-22,-24,-27,-22,-26,-33,0,-8,-8,-28,-22,-22,-22,-22,-15,-19,-20,-13,-8,-18,-18,-20,-13,-22,0,0,0,-13,0,0,0]} 1. e4 e5 2. Nf3 Nc6 3. Nc3 Nf6 4. d4 exd4 5. Nxd4 Bb4 6. Nxc6 bxc6 7. Bd3 O-O 8. O-O d5 9. exd5 cxd5 10. h3 {C47: Scotch Four Knights and Four Knights with 4 g3.} h6 11. Qf3 c6 12. Bf4 Re8 13. a3 Bd6 14. Rfe1 Rxe1+ 15. Rxe1 Be6 {[#]} 16. Bxd6 $146 (16. b4 {feels hotter.} a5 17. b5 Bxf4 18. Qxf4 cxb5 19. Nxb5 Rc8 20. Rb1) ({Predecessor:} 16. Ne2 c5 17. Bxd6 Qxd6 18. Nf4 Re8 19. b3 Bd7 20. Rxe8+ Bxe8 21. Qe3 Bc6 22. Ne2 {½-½ (35) Paravyan,D (2620)-Swiercz,D (2652) Chess.com INT 2022}) 16... Qxd6 17. Qg3 Qxg3 18. fxg3 a5 19. g4 Kf8 20. b3 g5 21. Kf2 Ke7 22. Na4 Nd7 23. Ke3 {The position is equal.} Kd6 24. Kd2 Rb8 25. Nc3 Ne5 26. Rf1 Ke7 27. Re1 Nxd3 28. Kxd3 Kd6 29. Rf1 Ke5 30. Re1+ Kd6 31. Rf1 Ke5 32. Re1+ Kd6 {A balanced but interesting game.  Weighted Error Value: White=0.07 (flawless) /Black=0.04 (flawless)} 1/2-1/2

[Event "Kezmarok Chess Open 2022"]
[Site "Kezmarok"]
[Date "2022.09.26"]
[Round "4.13"]
[White "Fizerova, Lucie"]
[Black "Fizer, Marek"]
[Result "1/2-1/2"]
[ECO "A36"]
[WhiteElo "1779"]
[BlackElo "1963"]
[Annotator "NA RC"]
[PlyCount "30"]
[EventDate "2022.09.24"]
[EventType "swiss"]
[EventCountry "SVK"]
[SourceTitle "playchess.com"]
[Source "ChessBase"]
[SourceQuality "1"]
[TimeControl "40/5400+30:1800+30"]

1. c4 {[%emt 0:00:20]} c5 {[%emt 0:00:05]} 2. Nc3 {[%emt 0:00:06]} Nc6 {[%emt 0:00:06]} 3. g3 {[%emt 0:00:08]} g6 {[%emt 0:00:04]} 4. Bg2 {[%emt 0:00:03]} Bg7 {[%emt 0:00:05]} 5. e4 {[%emt 0:00:18]} d6 {[%emt 0:00:06]} 6. Nge2 {[%emt 0:00:05]} Nf6 {[%emt 0:00:08]} 7. O-O {[%emt 0:00:14]} O-O {[%emt 0:00:09]} 8. a3 {[%emt 0:00:56]} a5 {[%emt 0:00:21]} 9. d3 {[%emt 0:01:10]} Ne8 {[%emt 0:00:22]} 10. f4 {[%emt 0:01:53]} Rb8 {[%emt 0:00:50]} 11. a4 {[%emt 0:07:37]} f5 {[%emt 0:01:54]} 12. Rb1 {[%emt 0:01:53]} Kh8 {[%emt 0:02:12]} 13. Bd2 {[%emt 0:03:01]} Nd4 {[%emt 0:10:02]} 14. Nxd4 {[%emt 0:01:57]} cxd4 {[%emt 0:00:26]} 15. Nb5 {[%emt 0:01:31]} b6 {[%emt 0:01:01]} 1/2-1/2

[Event "Kezmarok Chess Open 2022"]
[Site "Kezmarok"]
[Date "2022.09.26"]
[Round "4.14"]
[White "Striskova, Lucia"]
[Black "Kapolkova, Greta"]
[Result "1/2-1/2"]
[ECO "C45"]
[WhiteElo "1866"]
[BlackElo "1723"]
[Annotator "NA RC"]
[PlyCount "64"]
[EventDate "2022.09.24"]
[EventType "swiss"]
[EventCountry "SVK"]
[SourceTitle "playchess.com"]
[Source "ChessBase"]
[SourceQuality "1"]
[TimeControl "40/5400+30:1800+30"]

1. Nf3 {[%emt 0:00:24]} Nc6 {[%emt 0:00:11]} 2. e4 {[%emt 0:00:30]} e5 {[%emt 0:00:07]} 3. d4 {[%emt 0:00:17]} exd4 {[%emt 0:00:08]} 4. Nxd4 {[%emt 0:01:08]} Bc5 {[%emt 0:00:10]} 5. Nb3 {[%emt 0:00:14]} Bb6 {[%emt 0:00:06]} 6. Nc3 {[%emt 0:00:21]} Nf6 {[%emt 0:00:09] 6...Nf6 scores better than 6...d6.} 7. a4 {[%emt 0:01:50]} a5 {[%emt 0:00:07]} 8. Bg5 {[%emt 0:02:08]} h6 {[%emt 0:00:52]} 9. Bh4 {[%emt 0:00:05]} d6 {[%emt 0:01:28]} 10. Bb5 {[%emt 0:02:26]} Bd7 {[%emt 0:20:48]} 11. Qd2 {[%emt 0:09:22]} g5 {[%emt 0:17:58]} 12. Bg3 {[%emt 0:00:41]} Qe7 {[%emt 0:02:26]} 13. O-O-O {[%emt 0:03:01]} O-O-O {[%emt 0:00:26]} 14. Rhe1 {[%emt 0:05:21]} Ne5 {[%emt 0:05:08] [#]} 15. Nd4 $146 {[%emt 0:13:26]} ({Predecessor:} 15. Bxd7+ Qxd7 16. Nb5 Nc6 17. Qc3 Qe7 18. N5d4 Nxd4 19. Nxd4 Kb8 20. e5 dxe5 21. Bxe5 {½-½ (41) Macak,S (2214)-Rybansky,D (2338) Presov 2001}) 15... Bxb5 {[%emt 0:04:53]} 16. Ndxb5 {[%emt 0:04:10]} Ned7 {[%emt 0:06:11]} 17. Nd5 {[%emt 0:05:07]} Nxd5 {[%emt 0:00:13]} 18. Qxd5 {[%emt 0:00:23]} Nc5 {[%emt 0:10:30]} 19. Qc4 {[%emt 0:04:52]} f6 {[%emt 0:06:38]} 20. f3 {[%emt 0:01:55]} Kb8 {[%emt 0:01:39]} 21. Nc3 {[%emt 0:09:20]} c6 {[%emt 0:07:00]} 22. b4 {[%emt 0:07:32]} axb4 {[%emt 0:01:37]} 23. Qxb4 {[%emt 0:00:07]} Bc7 {[%emt 0:01:53]} 24. Bf2 {[%emt 0:01:26]} Na6 {[%emt 0:01:46]} 25. Qd4 {[%emt 0:01:45]} Kc8 {[%emt 0:00:57]} 26. Bg3 {[%emt 0:03:19]} Nc5 {[%emt 0:03:34]} 27. Re2 {[%emt 0:02:31]} Rd7 {[%emt 0:00:08]} 28. Red2 {[%emt 0:00:31]} Rhd8 {[%emt 0:00:13]} 29. Qb4 {[%emt 0:00:53]} Na6 {[%emt 0:00:51]} 30. Qc4 {[%emt 0:01:47]} Nc5 {[%emt 0:00:40]} 31. Qb4 {[%emt 0:01:18]} Na6 {[%emt 0:00:06]} 32. Qc4 {[%emt 0:01:55]} Nc5 $11 {[%emt 0:00:06]} (32... h5 $15) 1/2-1/2